Cogmind - Beta 13 @@@ ROGUE MODE // 2024.04.30 @ 10:50:48 Player: MO-55 Result: Destroyed by 3S-SYN(R) with Subdweller Beam Cannon Performance ------------- Evolutions (0) 0 Regions Visited (2) 400 Robots Destroyed (32) 160 Value Destroyed (703) 703 Prototype IDs (0) 0 Alien Tech Used (0) 0 Bonus (0) 0 TOTAL SCORE: 1263 Bonus ------- None Cogmind --------- Core Integrity 0/250 Matter 179/300 Energy 76/100 System Corruption 0% Temperature Cool (9) Movement Treading (240) Ox1 Location -10/Subcaves Parts ------- > --- POWER (1) -------- (None) > --- PROPULSION (2) --- Light Treads Light Treads > --- UTILITY (2) ------ Heat Sink High-capacity Storage Unit > --- WEAPON (2) ------- Assault Rifle Assault Rifle > --- INVENTORY (20) --- Light Treads Light Treads Aluminum Leg Aluminum Leg Aluminum Leg Aluminum Leg Improved Heat Sink Seismic Detector Utility Shielding Subdweller Laser Assault Rifle Grenade Launcher Subdweller Shrapnel Launcher Mining Laser Hammer Peak State ------------ > --- POWER ------------ Light Ion Engine > --- PROPULSION ------- Aluminum Leg Aluminum Leg > --- UTILITY ---------- Heat Sink High-capacity Storage Unit > --- WEAPON ----------- Light Cannon Light Cannon > --- INVENTORY -------- Light Treads Light Treads Light Treads Light Treads Aluminum Leg Aluminum Leg Aluminum Leg Aluminum Leg Aluminum Leg Improved Heat Sink Seismic Detector Utility Shielding Assault Rifle Assault Rifle Assault Rifle Assault Rifle Grenade Launcher Mining Laser [Rating: 9] Favorites ----------- Power Light Ion Engine Engine Light Ion Engine Propulsion Aluminum Leg Treads Light Treads Leg Aluminum Leg Utility High-capacity Storage Unit Device Seismic Detector Storage High-capacity Storage Unit Weapon Light Cannon Energy Gun Subdweller Laser Ballistic Gun Assault Rifle Ballistic Cannon Light Cannon Launcher Grenade Launcher Special Weapon Mining Laser Build | -11 -10 -10 ------- Run | Yrd Mat Sub Slots Evolved . | . . . Power . | . . . Propulsion . | . . . Utility . | . . . Weapon . | . . . Parts Attached 48 | 7 17 24 Power 3 | 1 1 1 Engine 3 | 1 1 1 Core . | . . . Reactor . | . . . Propulsion 9 | 2 5 2 Treads 2 | . . 2 Leg 7 | 2 5 . Wheel . | . . . Hover . | . . . Flight . | . . . Utility 16 | 2 5 9 Device 14 | 1 4 9 Storage 2 | 1 1 . Processor . | . . . Hackware . | . . . Protection . | . . . Artifact . | . . . Weapon 20 | 2 6 12 Energy Gun 3 | . . 3 Energy Cannon . | . . . Ballistic Gun 7 | 2 . 5 Ballistic Cannon 5 | . 4 1 Launcher 1 | . 1 . Special Weapon 4 | . 1 3 Impact Weapon . | . . . Slashing Weapon . | . . . Piercing Weapon . | . . . Special Melee Weapon . | . . . Unidentified Prototypes . | . . . Parts Lost 7 | . 1 6 Power 3 | . 1 2 Propulsion 1 | . . 1 Utility . | . . . Weapon 3 | . . 3 Highest Loss Streak 3 | . 1 3 To Critical Strikes . | . . . Average Slot Usage (%) 98 | . 99 97 Engine 12 | . 13 11 Treads 10 | . . 19 Leg 17 | . 28 8 Device 14 | . 14 14 Storage 14 | . 14 14 Energy Gun 3 | . . 5 Ballistic Gun 10 | . 9 10 Ballistic Cannon 13 | . 18 9 Naked Turns . | . . . Heaviest Build 52 | 11 50 52 Greatest Support 40 | 20 20 40 Greatest Overweight (x) 2 | . 2 2 Average Overweight (x) 1 | . 1 1 Largest Inventory Capacity 20 | 8 20 20 Average Capacity 19 | 7 18 20 Most Carried 18 | 4 18 17 Average Carried 13 | 3 12 15 Final Capacity 20 | 8 20 20 Final Carried 16 | 4 16 15 Class Distribution -------------------- 100% | Mutant Dominant Class ---------------- Mutant | -10/Materials Mutant | -10/Subcaves Resources | -11 -10 -10 ----------- Run | Yrd Mat Sub Matter Collected 1108 | 270 471 367 Remotely . | . . . Salvage Created 1048 | 121 610 317 Parts 63 | 9 38 16 Haulers Intercepted 2 | . 2 . Recyclers Shooed 1 | . 1 . Parts Field Recycled . | . . . Retrieved Matter . | . . . Parts Self-Destructed 5 | . . 5 Prevented . | . . . Kills | -11 -10 -10 ------- Run | Yrd Mat Sub Combat Hostiles Destroyed 17 | . 12 5 Guns 2 | . 1 1 Cannons 12 | . 8 4 AOE 3 | . 3 . Classes Destroyed 9 | 2 5 2 Tunneler 4 | 4 . . Hauler 2 | . 2 . Recycler 4 | 1 3 . Operator 2 | . 2 . Watcher 3 | . 3 . Swarmer 4 | . 3 1 Grunt 9 | . 9 . Sentry 1 | . . 1 Subdweller 3 | . . 3 Best Kill Streak 5 | 2 5 2 Combat Bots Only 3 | . 3 2 Max Kills in Single Turn 4 | 1 4 1 Gunslinging . | . . . Exploded 2 | . 2 . Melee . | . . . Uniques/NPCs Destroyed . | . . . Combat | -11 -10 -10 -------- Run | Yrd Mat Sub Hostile Shots Fired 102 | . 43 59 Missed 24 | . 10 14 Damage Taken 1233 | . 420 813 Core 265 | . 97 168 Absorbed by Shields . | . . . Core Remaining (%) 100 | 100 . . Volleys Fired 132 | 16 69 47 Largest 2 | 2 2 2 Hottest 100 | 40 100 100 Shots Fired 240 | 32 134 74 Gun 135 | 32 47 56 Cannon 94 | . 83 11 Launcher 2 | . 2 . Special 9 | . 2 7 Kinetic 212 | 32 130 50 Thermal 26 | . 2 24 Explosive 2 | . 2 . Electromagnetic . | . . . Robot Hit Streak 15 | 6 10 15 Robot Miss Streak 5 | 1 5 2 Penetration Max . | . . . Secondary Targets . | . . . Shots Hit Robots 145 | 25 71 49 Core Hits 57 | 10 31 16 Critical Kills 1 | . 1 . Critical Parts Destroyed . | . . . Critical Strikes 3 | . 2 1 Destroy 2 | . 1 1 Blast 1 | . 1 . Melee Attacks . | . . . Impact . | . . . Slashing . | . . . Piercing . | . . . Sneak Attacks . | . . . Combat Hostiles . | . . . Follow-up Attacks . | . . . Damage Inflicted 2208 | 200 1214 794 Guns 1130 | 200 286 644 Cannons 793 | . 643 150 Explosions 285 | . 285 . Melee . | . . . Ramming . | . . . Kinetic 1617 | 200 929 488 Thermal 306 | . . 306 Explosive 285 | . 285 . Electromagnetic . | . . . Impact . | . . . Slashing . | . . . Piercing . | . . . Highest Corruption . | . . . Average Corruption . | . . . Corruption Purged . | . . . Corruption Blocked . | . . . Overload Shots . | . . . Overflow Damage 23 | . 23 . Projectiles 15 | . 15 . Explosions 8 | . 8 . Melee . | . . . Knockbacks 10 | . 8 2 Impact . | . . . Kinetic 10 | . 8 2 Secondary . | . . . Self-Inflicted Damage . | . . . Shots . | . . . Rammed . | . . . Targets Rammed . | . . . Kicked . | . . . Crushed . | . . . Highest Temperature 40 | . 40 . Average Temperature 13 | . 13 . Received Heat Transfer 420 | . 231 189 Siege Activations . | . . . Robots Corrupted . | . . . Combat Hostiles . | . . . Parts Fried . | . . . Impact Corruptions . | . . . Robots Melted . | . . . Combat Hostiles . | . . . Parts Melted . | . . . Heat Transferred 375 | . . 375 Parts Sabotaged . | . . . Parts Stolen . | . . . Parts Stripped . | . . . Power Chain Reactions . | . . . Alert | -11 -10 -10 ------- Run | Yrd Mat Sub Peak Influence 151 | 25 151 . Initial 16 | . 16 . Average 62 | 9 64 . Maximum Alert Level . | . . . Low Security (%) 100 | 100 100 . Level 1 . | . . . Level 2 . | . . . Level 3 . | . . . Level 4 . | . . . Level 5 . | . . . High Security . | . . . Max Security . | . . . Squads Dispatched 3 | . 3 . Investigation 1 | . 1 . Extermination . | . . . Reinforcement 2 | . 2 . Assault . | . . . Garrison . | . . . Intercept . | . . . Searches Triggered . | . . . Construction Impeded . | . . . Haulers Reinforced . | . . . Active Scanning Responses . | . . . Cargo Convoy Interrupts . | . . . Stealth | -11 -10 -10 --------- Run | Yrd Mat Sub Distress Signals 1 | . 1 . Communications Jammed . | . . . Distress Signals . | . . . Times Spotted 37 | . 30 7 Peak Tracking Total 4 | . 4 2 Tactical Retreats 1 | . 1 . Traps | -11 -10 -10 ------- Run | Yrd Mat Sub Traps Triggered 2 | . . 2 Indirectly . | . . . Trap Hack Attempts . | . . . Triggered . | . . . Disarmed . | . . . Reprogrammed . | . . . Reused 1 | . . 1 Traps Extracted . | . . . Installed 2 | . . 2 Triggered . | . . . Most Traps Carried 1 | . . 1 Machines | -11 -10 -10 ---------- Run | Yrd Mat Sub Machines Disabled 3 | . 3 . Max in Single Turn 1 | . 1 . Machines Repaired . | . . . Machines Dismantled . | . . . Machines Sabotaged . | . . . Overloaded Fab Kills . | . . . Hacking | -11 -10 -10 --------- Run | Yrd Mat Sub Machines Accessed 5 | . 4 1 Terminals 3 | . 3 . Fabricators . | . . . Repair Stations . | . . . Recycling Units 1 | . 1 . Scanalyzers . | . . . Garrison Access . | . . . Total Hacks 14 | . 12 2 Successful 4 | . 2 2 Failed 10 | . 10 . Catastrophic 1 | . 1 . Database Lockouts . | . . . Manual 9 | . 9 . Terminals 9 | . 9 . Fabricators . | . . . Repair Stations . | . . . Recycling Units 3 | . 3 . Scanalyzers . | . . . Garrison Access . | . . . Terminal Hacks 3 | . 1 2 Record 2 | . . 2 Part Schematic 1 | . 1 . Fabricator Hacks . | . . . Repair Station Hacks . | . . . Recycling Unit Hacks . | . . . Scanalyzer . | . . . Garrison Access Hacks . | . . . Unauthorized Hacks 1 | . 1 . Terminals 1 | . 1 . Botnet 1 | . 1 . Fabricators . | . . . Repair Stations . | . . . Recycling Units . | . . . Scanalyzers . | . . . Garrison Access . | . . . Data Cores Recovered . | . . . Used . | . . . Hacking Detections 4 | . 4 . Full Trace Events 1 | . 1 . Feedback Events . | . . . Feedback Blocked . | . . . Robot Schematics Acquired . | . . . Robots Built . | . . . Authchips . | . . . Time . | . . . Total Robot Build Rating . | . . . Part Schematics Acquired 1 | . 1 . Parts Built . | . . . Authchips . | . . . Time . | . . . Total Part Build Rating . | . . . Parts Repaired . | . . . Time . | . . . Parts Recycled . | . . . Recycled Matter . | . . . Retrieved Matter . | . . . Retrieved Components . | . . . Parts Scanalyzed . | . . . Part Schematics Acquired . | . . . Parts Damaged . | . . . Bothacking | -11 -10 -10 ------------ Run | Yrd Mat Sub Used RIF Installer . | . . . Robots Hacked . | . . . Non-combat . | . . . Combat . | . . . Robot Hacks Applied . | . . . Relay Couplers Released . | . . . Fabnet Peak Effective % . | . . . Robots Rewired . | . . . Allies Hacked . | . . . Hacks Repelled . | . . . Allies | -11 -10 -10 -------- Run | Yrd Mat Sub Total Allies . | . . . Largest Group . | . . . Highest-Rated Group . | . . . Highest-Rated Ally . | . . . Total Orders . | . . . Ally Attacks . | . . . Total Damage . | . . . Kills . | . . . Allies Corrupted . | . . . Allies Melted . | . . . Intel | -11 -10 -10 ------- Run | Yrd Mat Sub Robot Analysis Total . | . . . Derelict Logs Recovered . | . . . Drone Launches . | . . . Drone Recoveries . | . . . Exploration | -11 -10 -10 ------------- Run | Yrd Mat Sub Turns Passed 5437 | 121 2406 2910 Spaces Moved 2011 | 56 870 1085 Core 3 | 3 . . Treads 795 | . . 795 Legs 1213 | 53 870 290 Wheels . | . . . Hover . | . . . Flight . | . . . Fastest Speed 50 | 50 120 240 Average Speed 237 | 116 234 245 Slowest Speed 260 | 120 260 260 Overloaded Moves . | . . . Propulsion Burnouts . | . . . Robots Hopped . | . . . Cave-ins Triggered . | . . . Exploration Rate (%) 50 | 4 91 56 Regions Visited 2 Branch Regions 1 Pre-discovered Areas 1 | . . 1 Known Exits Taken . | . . . Unknown Exits Taken 2 | 1 1 . Scrap Searched . | . . . Spaces Dug . | . . . Terrain Destroyed 11 | . 11 . Melee . | . . . Projectile . | . . . AOE 11 | . 11 . Terrain Rammed . | . . . Walls Destroyed . | . . . Machines Disabled . | . . . Actions | -11 -10 -10 --------- Run | Yrd Mat Sub Total 2420 | 82 1101 1237 Wait 197 | . 127 70 Move 2009 | 55 869 1085 Hop . | . . . Pick Up 22 | 4 13 5 Fast Attach 9 | 7 . 2 Attach 6 | . 1 5 Detach 1 | . . 1 Swap 33 | . 16 17 Drop 9 | . 6 3 Fire 132 | 16 69 47 Melee . | . . . Ram . | . . . Kick . | . . . Crush . | . . . Escape Stasis . | . . . Rewire . | . . . Trap 2 | . . 2 Miscellaneous . | . . . Route ------- -11/Scrapyard -10/Materials (discovered 6 exits: [*Mat x3] / [*Min x2] / *Sub) -10/Subcaves (discovered 2 exits: [*Mat x2]) History --------- Turn | Location | Event 8 | -11/Scrapyard | Discovered new exit (range 16) 122 | -11/Scrapyard | Entered Materials 143 | -10/Materials | Discovered new exit (range 16) 215 | -10/Materials | Discovered new exit (range 16) 313 | -10/Materials | Build established: Mutant 375 | -10/Materials | Discovered new exit (range 11) 937 | -10/Materials | Discovered new exit (range 14) 2000 | -10/Materials | Discovered new exit (range 7) 2512 | -10/Materials | Discovered new exit (range 7) 2528 | -10/Materials | Entered Subcaves 2662 | -10/Subcaves | Shifting Twisted Machinery released Sub. Monowheel 2707 | -10/Subcaves | Discovered new exit (range 15) 3095 | -10/Subcaves | Shifting Twisted Machinery released Flamer 3212 | -10/Subcaves | Visited Clippyterm 3262 | -10/Subcaves | Learned location of Zion (-6) 3262 | -10/Subcaves | Met a Zionite searching for "candidates" 3374 | -10/Subcaves | Core integrity fell below 50% 3412 | -10/Subcaves | Lost 3 parts (1p1n1w) 4274 | -10/Subcaves | Discovered new exit (range 15) 4962 | -10/Subcaves | Shifting Twisted Machinery released Shrapnel Trap 5018 | -10/Subcaves | Shifting Twisted Machinery released Sub. Monowheel 5431 | -10/Subcaves | Core integrity fell below 20% 5438 | -10/Subcaves | Destroyed by 3S-SYN(R) with Subdweller Beam Cannon Last Messages --------------- Sub. Monowheel falls loose from the Twisted Machinery. 05221_ Dropped Shrapnel Trap. 05222_ Installed Shrapnel Trap. 05254_ A0-H6X(R) destroyed. 05264_ Subatomizers dissect the Sub. Monowheel. 05269_ Acquired 40 matter. 05274_ Acquired Hammer. 05275_ Subatomizers dissect the Sub. Monowheel. 05277_ Extracted 4 energy. 05285_ VA-YTE(R) destroyed. 05288_ Acquired 54 matter. 05300_ XU-IRY(R) suffers critical hit (Destroy). 05313_ Subatomizers dissect the Sub. Monowheel. 05315_ XU-IRY(R) destroyed. 05318_ Acquired 57 matter. 05324_ Subatomizers dissect the Disposable Heat Sink. 05432_ Ion Engine destroyed. 05433_ Sub. Laser shoots sparks and powers down. Map ----- +----------------------------------------------------+ | ??????????????????????????????????????????????? | | ??????????????????????????????????????????????? | | ??????????????????????????????????????????????? | | ??????????????????????????????????????????????? | | ??????????????????????????????????????????????? | | ??????????????????????????????????????????????? | | ??????????????????????????????????????????????? | | ??????????????????????????????????????????????? | | ??????????????????????????????????????????????? | | ??????????????????????????????????????????????? | | ??????????????????????????????????????????????? | | ??????????????????????????????????????????????? | | ??????????????????????????????????????????????? | | ??????????????????????????????????????????????? | | ??????????????????????????????????????????????? | | ??????????????????????????????????????????????? | | ??????????????????????????????????????????????? | | ??????????????????????????????????????????????? | | ??????????????????????????????????????????????? | | ??????????????????????????????????????????????? | | ??????????????????????????????????????????????? | | ?????????????????????????????#????????????????? | | ???????????????????????????? #????????????????? | | ???????????????????????????? #????????????????? | | ???????????????????##??#### #????????????????? | | ???????????????????# ###;@# #????????????????? | | ???????????????????## R #?????????????????? | | ???????????????????# ##?????????????????? | | ???????????????????# # ###??????????????????? | | ???????????????????##?## #???????????????????? | | ???????????????????????# #???????????????????? | | ??????????????????????## ##??????????????????? | | ??????????????????????# ##?????????????????? | | ??????????????????????# #?????????????????? | | ?????????????????????## ##????????????????? | | ?????????????????????# ##???????????????? | | ?????????????????????# ##??????????????? | | ????????????????????# #### #??????????????? | | ????????????????????# #???## #??????????????? | | ????????????????????# ?????# ##??????????????? | | ????????????????????# ?????# ##??????????????? | | ????????????????????# #???## ##?????????????? | | ????????????????????# #### #?????????????? | | ?????????????????????# #?????????????? | | ???????????????? #???### #?????????????? | | ??????????????? #????# #?????????????? | | ??????????????# ????## #?????????????? | | ??????????????# ####?# ##?????????????? | | ??????????????? #?# #??????????????? | | ???????????????? #?## #??????????????? | +----------------------------------------------------+ Best States ------------- Heat Dissipation 35 Energy Generation 10 Energy Capacity 250 Matter Stores 268 Matter Capacity 300 Sight Range 16 Terrain Scan Density 10 Evasion (%) 55 Recoil Reduction 2 Item Schematics ----------------- Hcp. Storage Unit | -10/Materials | Hacked Robot Schematics ------------------ None Fabricated ------------ Nothing Alien Tech Used ----------------- None Achievements -------------- None Challenges ------------ None Game ------ Seed CryofiberTripodAutohacker Manual? 0 Play Time 00:21:13 Cumulative 125.0 hours Start 2024.04.30 @ 10:28:04 End 2024.04.30 @ 10:50:48 Sessions 1 Manual Loads 0 Difficulty Rogue Special Mode None Game No. 102 Rogue 102 Adventurer 0 Explorer 0 Win Type - Total 3 Types 2/0/1/0/0/0/0/0/0 Lore% 51 Gallery% 67 Achievement% 54 Wizard Run 0 Options --------- Layout 2 ASCII 0 Keyboard 0 Movement Mouse Keybinds 1 Fullscreen 2 Font 32/SmallcapsGlow Map View 50x44 Zoom Use 0% Tactical HUD 1 Map Filters NONE Filters NONE Steam 1 RUN: 391ee4d1-109d-4b1c-8f13-13f02d26c6a9